[Event "Early-Titled-Tuesday-Blitz-February-20-2024"]
[Site "Chess.com"]
[Date "2024.02.20"]
[Round "8"]
[White "Nouali_Mohamed"]
[Black "AvitalBor"]
[Result "0-1"]
[WhiteElo "2545"]
[BlackElo "2768"]
[TimeControl "180+1"]
[EndTime "9:31:07 PST"]
[Termination "AvitalBor won by resignation"]

1. e4 {[%clk 0:03:00]} 1... c6 {[%clk 0:02:56.9]} 2. d4 {[%clk 0:03:00]} 2... d5
{[%clk 0:02:57.8]} 3. e5 {[%clk 0:03:00.6]} 3... c5 {[%clk 0:02:57.3]} 4. c4
{[%clk 0:03:00.9]} 4... cxd4 {[%clk 0:02:55.4]} 5. Nf3 {[%clk 0:03:01]} 5... Nc6
{[%clk 0:02:53.3]} 6. Nxd4 {[%clk 0:02:59.9]} 6... dxc4 {[%clk 0:02:50.2]} 7.
Nxc6 {[%clk 0:02:55.7]} 7... Qxd1+ {[%clk 0:02:51.1]} 8. Kxd1 {[%clk 0:02:56.6]}
8... bxc6 {[%clk 0:02:51.1]} 9. Bxc4 {[%clk 0:02:57.1]} 9... Bf5 {[%clk
0:02:47]} 10. e6 {[%clk 0:02:51.2]} 10... Bxe6 {[%clk 0:02:43.4]} 11. Bxe6
{[%clk 0:02:50.3]} 11... fxe6 {[%clk 0:02:44.3]} 12. Nd2 {[%clk 0:02:47.8]}
12... g6 {[%clk 0:02:44.4]} 13. Kc2 {[%clk 0:02:46.2]} 13... Bg7 {[%clk
0:02:44.4]} 14. Re1 {[%clk 0:02:39.4]} 14... Nf6 {[%clk 0:02:37.3]} 15. Rxe6
{[%clk 0:02:36.6]} 15... Kd7 {[%clk 0:02:37.5]} 16. Re3 {[%clk 0:02:06]} 16...
Nd5 {[%clk 0:02:37.3]} 17. Rd3 {[%clk 0:01:45.4]} 17... Kc7 {[%clk 0:02:31.9]}
18. a3 {[%clk 0:01:45.2]} 18... a5 {[%clk 0:02:31]} 19. Nf3 {[%clk 0:01:38]}
19... a4 {[%clk 0:02:22.9]} 20. Be3 {[%clk 0:01:26.3]} 20... Rhf8 {[%clk
0:02:07.9]} 21. Re1 {[%clk 0:01:18.8]} 21... h6 {[%clk 0:01:46.8]} 22. Bc1
{[%clk 0:01:17.4]} 22... Rf7 {[%clk 0:01:41.7]} 23. Re4 {[%clk 0:01:10.4]} 23...
Ra5 {[%clk 0:01:07.6]} 24. Kd1 {[%clk 0:00:44.3]} 24... Rb5 {[%clk 0:01:00.6]}
25. Re2 {[%clk 0:00:16.1]} 25... g5 {[%clk 0:00:59.1]} 26. h3 {[%clk 0:00:15.5]}
26... Bf6 {[%clk 0:00:50.8]} 27. Rc2 {[%clk 0:00:14.8]} 27... Rf8 {[%clk
0:00:49.7]} 28. Rc4 {[%clk 0:00:13.8]} 28... Rfb8 {[%clk 0:00:43.7]} 29. Nd4
{[%clk 0:00:07.9]} 29... Bxd4 {[%clk 0:00:40.3]} 30. Rdxd4 {[%clk 0:00:08.8]}
30... Nb6 {[%clk 0:00:38.2]} 31. Rb4 {[%clk 0:00:07.6]} 31... Rf8 {[%clk
0:00:37.1]} 32. f3 {[%clk 0:00:07.6]} 32... Rxb4 {[%clk 0:00:35]} 33. Rxb4
{[%clk 0:00:08.5]} 33... c5 {[%clk 0:00:35.1]} 34. Re4 {[%clk 0:00:07.7]} 34...
Kd6 {[%clk 0:00:31.9]} 35. Bd2 {[%clk 0:00:07.6]} 35... e6 {[%clk 0:00:30.5]}
36. Kc2 {[%clk 0:00:07.4]} 36... Kd5 {[%clk 0:00:30.7]} 37. Bc3 {[%clk
0:00:06.6]} 37... Rf5 {[%clk 0:00:16.4]} 38. h4 {[%clk 0:00:06.8]} 38... gxh4
{[%clk 0:00:16]} 39. Rxh4 {[%clk 0:00:07.7]} 39... h5 {[%clk 0:00:16.5]} 40. Rh3
{[%clk 0:00:07.1]} 40... Nc4 {[%clk 0:00:16.5]} 41. Bg7 {[%clk 0:00:05.6]} 41...
Ne3+ {[%clk 0:00:16.5]} 42. Kd3 {[%clk 0:00:05.9]} 42... Nxg2 {[%clk 0:00:16.8]}
43. Bh6 {[%clk 0:00:04]} 43... Ne1+ {[%clk 0:00:16.6]} 44. Ke2 {[%clk
0:00:03.4]} 44... Nc2 {[%clk 0:00:16.9]} 45. Be3 {[%clk 0:00:03.4]} 45... Re5
{[%clk 0:00:16.2]} 46. f4 {[%clk 0:00:02.9]} 46... Rxe3+ {[%clk 0:00:16.5]} 47.
Rxe3 {[%clk 0:00:03.8]} 47... Nxe3 {[%clk 0:00:17.2]} 48. Kxe3 {[%clk
0:00:03.6]} 48... h4 {[%clk 0:00:17.6]} 0-1

[Event "Early-Titled-Tuesday-Blitz-February-20-2024"]
[Site "Chess.com"]
[Date "2024.02.20"]
[Round "8"]
[White "shimastream"]
[Black "IM_ArthurDW08"]
[Result "0-1"]
[WhiteElo "2972"]
[BlackElo "2814"]
[TimeControl "180+1"]
[EndTime "9:31:08 PST"]
[Termination "IM_ArthurDW08 won on time"]

1. e4 {[%clk 0:03:00.9]} 1... e5 {[%clk 0:02:56.2]} 2. Nf3 {[%clk 0:02:59]} 2...
Nc6 {[%clk 0:02:56.8]} 3. Nc3 {[%clk 0:02:59.9]} 3... Nf6 {[%clk 0:02:55.3]} 4.
h3 {[%clk 0:03:00.5]} 4... Bb4 {[%clk 0:02:53.8]} 5. Nd5 {[%clk 0:03:00.7]} 5...
O-O {[%clk 0:02:50.2]} 6. c3 {[%clk 0:03:00.2]} 6... Be7 {[%clk 0:02:46.4]} 7.
d3 {[%clk 0:02:59.5]} 7... d6 {[%clk 0:02:41.8]} 8. Nxe7+ {[%clk 0:02:56.4]}
8... Qxe7 {[%clk 0:02:40.9]} 9. g3 {[%clk 0:02:42.5]} 9... d5 {[%clk 0:02:31.8]}
10. Qc2 {[%clk 0:02:41.6]} 10... dxe4 {[%clk 0:02:23.5]} 11. dxe4 {[%clk
0:02:40.9]} 11... b6 {[%clk 0:02:23.5]} 12. Be3 {[%clk 0:02:28.8]} 12... a5
{[%clk 0:02:15.4]} 13. Be2 {[%clk 0:02:05.5]} 13... Ba6 {[%clk 0:01:59.1]} 14.
Bxa6 {[%clk 0:01:55.1]} 14... Rxa6 {[%clk 0:02:00]} 15. Nh4 {[%clk 0:01:55.6]}
15... Qe6 {[%clk 0:01:56.8]} 16. a4 {[%clk 0:01:37.3]} 16... Raa8 {[%clk
0:01:52]} 17. b3 {[%clk 0:01:24.5]} 17... Rad8 {[%clk 0:01:43]} 18. Kf1 {[%clk
0:01:23.9]} 18... Ne7 {[%clk 0:01:33.7]} 19. Kg2 {[%clk 0:01:22]} 19... Qc6
{[%clk 0:01:26.3]} 20. f3 {[%clk 0:01:21.9]} 20... h6 {[%clk 0:01:26.9]} 21. Kf2
{[%clk 0:01:21.2]} 21... g5 {[%clk 0:01:13.9]} 22. Ng2 {[%clk 0:01:19.2]} 22...
Kg7 {[%clk 0:01:12.1]} 23. Rad1 {[%clk 0:01:11.7]} 23... Ng6 {[%clk 0:01:05.7]}
24. Bc1 {[%clk 0:01:10]} 24... Qe6 {[%clk 0:01:00.9]} 25. Ne3 {[%clk 0:01:09.4]}
25... Ne7 {[%clk 0:01:00.5]} 26. Kg2 {[%clk 0:01:09.2]} 26... Nh5 {[%clk
0:00:56.3]} 27. b4 {[%clk 0:00:53.9]} 27... axb4 {[%clk 0:00:53.4]} 28. cxb4
{[%clk 0:00:53.7]} 28... Nc6 {[%clk 0:00:53.4]} 29. Nf5+ {[%clk 0:00:53.3]}
29... Kh7 {[%clk 0:00:53.9]} 30. Qb2 {[%clk 0:00:42.9]} 30... Ng7 {[%clk
0:00:49.4]} 31. g4 {[%clk 0:00:38.7]} 31... Nxf5 {[%clk 0:00:48.6]} 32. gxf5
{[%clk 0:00:39.6]} 32... Qc4 {[%clk 0:00:48.7]} 33. b5 {[%clk 0:00:35.2]} 33...
Nd4 {[%clk 0:00:49.1]} 34. Be3 {[%clk 0:00:35.8]} 34... Qxa4 {[%clk 0:00:46.5]}
35. h4 {[%clk 0:00:31.2]} 35... Nxf5 {[%clk 0:00:44.6]} 36. exf5 {[%clk
0:00:13]} 36... Rxd1 {[%clk 0:00:44.2]} 37. Rxd1 {[%clk 0:00:13.9]} 37... Qxd1
{[%clk 0:00:44.4]} 38. hxg5 {[%clk 0:00:14.8]} 38... e4 {[%clk 0:00:39.6]} 39.
fxe4 {[%clk 0:00:08.3]} 39... Qg4+ {[%clk 0:00:40]} 40. Kf2 {[%clk 0:00:09.1]}
40... Qxe4 {[%clk 0:00:39.3]} 41. Qf6 {[%clk 0:00:09.4]} 41... Qh4+ {[%clk
0:00:31.6]} 42. Kg2 {[%clk 0:00:07.6]} 42... hxg5 {[%clk 0:00:25.5]} 43. Bxg5
{[%clk 0:00:08.5]} 43... Qxg5+ {[%clk 0:00:20.5]} 44. Qxg5 {[%clk 0:00:05.6]}
44... Rg8 {[%clk 0:00:21.2]} 45. Qxg8+ {[%clk 0:00:06.4]} 45... Kxg8 {[%clk
0:00:22]} 46. Kf3 {[%clk 0:00:07.1]} 46... Kf8 {[%clk 0:00:20]} 47. Ke4 {[%clk
0:00:08]} 47... Ke7 {[%clk 0:00:18.8]} 48. Kd5 {[%clk 0:00:08.9]} 48... f6
{[%clk 0:00:18.9]} 49. Kc6 {[%clk 0:00:09.8]} 49... Kd8 {[%clk 0:00:19.4]} 50.
Kb7 {[%clk 0:00:02.4]} 50... Kd7 {[%clk 0:00:19.8]} 51. Ka6 {[%clk 0:00:02.2]}
51... Kc8 {[%clk 0:00:15.5]} 52. Ka7 {[%clk 0:00:01.7]} 52... c5 {[%clk
0:00:11.2]} 0-1

[Event "Early-Titled-Tuesday-Blitz-February-20-2024"]
[Site "Chess.com"]
[Date "2024.02.20"]
[Round "8"]
[White "Matols"]
[Black "rcmz"]
[Result "1-0"]
[WhiteElo "2356"]
[BlackElo "2188"]
[TimeControl "180+1"]
[EndTime "9:31:11 PST"]
[Termination "Matols won by resignation"]

1. d4 {[%clk 0:03:00.9]} 1... d6 {[%clk 0:02:59]} 2. Nf3 {[%clk 0:02:59.9]} 2...
Nd7 {[%clk 0:02:59]} 3. g3 {[%clk 0:02:59.5]} 3... h6 {[%clk 0:02:58.7]} 4. Bg2
{[%clk 0:02:59.5]} 4... g5 {[%clk 0:02:57.3]} 5. h3 {[%clk 0:02:55.1]} 5... c6
{[%clk 0:02:56.3]} 6. O-O {[%clk 0:02:54]} 6... Bg7 {[%clk 0:02:56.4]} 7. c3
{[%clk 0:02:51.2]} 7... Nf8 {[%clk 0:02:55.8]} 8. e4 {[%clk 0:02:50.2]} 8... Ng6
{[%clk 0:02:55.4]} 9. Re1 {[%clk 0:02:48.2]} 9... g4 {[%clk 0:02:49.6]} 10. hxg4
{[%clk 0:02:45.5]} 10... Bxg4 {[%clk 0:02:48.8]} 11. Nbd2 {[%clk 0:02:41.5]}
11... Qc7 {[%clk 0:02:47.6]} 12. Qb3 {[%clk 0:02:40.3]} 12... e5 {[%clk
0:02:41.2]} 13. a4 {[%clk 0:02:20.3]} 13... Be6 {[%clk 0:02:32]} 14. Qc2 {[%clk
0:02:15.6]} 14... Nf6 {[%clk 0:02:29.7]} 15. a5 {[%clk 0:02:13.8]} 15... Rc8
{[%clk 0:02:14.1]} 16. a6 {[%clk 0:02:11.6]} 16... b6 {[%clk 0:02:12.3]} 17.
dxe5 {[%clk 0:02:09.1]} 17... dxe5 {[%clk 0:02:11.1]} 18. Nf1 {[%clk 0:02:05.5]}
18... Ng4 {[%clk 0:02:06.8]} 19. Ne3 {[%clk 0:02:01.5]} 19... Nxe3 {[%clk
0:02:05.4]} 20. Bxe3 {[%clk 0:02:02.4]} 20... c5 {[%clk 0:01:56.5]} 21. Rad1
{[%clk 0:01:50.2]} 21... Kf8 {[%clk 0:01:42.5]} 22. Rd2 {[%clk 0:01:26]} 22...
Kg8 {[%clk 0:01:38.1]} 23. Red1 {[%clk 0:01:23.8]} 23... Kh7 {[%clk 0:01:36.7]}
24. Bf1 {[%clk 0:01:15.1]} 24... Rhd8 {[%clk 0:01:34.7]} 25. Kg2 {[%clk
0:01:13.2]} 25... Bg4 {[%clk 0:01:30.7]} 26. Be2 {[%clk 0:01:12.6]} 26... Bxf3+
{[%clk 0:01:29.1]} 27. Bxf3 {[%clk 0:01:13.5]} 27... Bf6 {[%clk 0:01:25.9]} 28.
Rh1 {[%clk 0:01:10.8]} 28... Bg7 {[%clk 0:01:23.5]} 29. Rxd8 {[%clk 0:01:04.9]}
29... Rxd8 {[%clk 0:01:22.1]} 30. Qc1 {[%clk 0:01:03.7]} 30... Kg8 {[%clk
0:01:06.1]} 31. Bxh6 {[%clk 0:01:02.6]} 31... Bxh6 {[%clk 0:01:04.7]} 32. Qxh6
{[%clk 0:01:03.5]} 32... Qe7 {[%clk 0:01:02.9]} 33. Qh7+ {[%clk 0:00:52.4]}
33... Kf8 {[%clk 0:01:01.8]} 34. Bh5 {[%clk 0:00:49.9]} 34... Qf6 {[%clk
0:01:01]} 35. Bxg6 {[%clk 0:00:47.9]} 35... Qxg6 {[%clk 0:00:44.4]} 36. Qxg6
{[%clk 0:00:47.1]} 36... fxg6 {[%clk 0:00:44]} 37. Rh8+ {[%clk 0:00:47.5]} 37...
Ke7 {[%clk 0:00:42.8]} 38. Rxd8 {[%clk 0:00:47.9]} 38... Kxd8 {[%clk 0:00:42.4]}
39. Kf3 {[%clk 0:00:47.8]} 39... Ke7 {[%clk 0:00:41]} 40. Kg4 {[%clk 0:00:48.1]}
40... Kf6 {[%clk 0:00:38.6]} 41. f4 {[%clk 0:00:47.6]} 41... b5 {[%clk
0:00:38.2]} 42. b3 {[%clk 0:00:38.6]} 42... b4 {[%clk 0:00:29]} 43. c4 {[%clk
0:00:38.3]} 43... Ke6 {[%clk 0:00:19.5]} 44. Kg5 {[%clk 0:00:37.2]} 44... Kf7
{[%clk 0:00:16]} 45. fxe5 {[%clk 0:00:30.1]} 45... Ke6 {[%clk 0:00:15.4]} 46.
Kxg6 {[%clk 0:00:29.9]} 46... Kxe5 {[%clk 0:00:15]} 47. Kh5 {[%clk 0:00:26.1]}
47... Kxe4 {[%clk 0:00:14.3]} 48. g4 {[%clk 0:00:26.7]} 48... Kd3 {[%clk
0:00:14.5]} 49. g5 {[%clk 0:00:27.3]} 49... Kc3 {[%clk 0:00:14.9]} 50. g6 {[%clk
0:00:27.9]} 50... Kxb3 {[%clk 0:00:15.3]} 51. g7 {[%clk 0:00:28.6]} 51... Kxc4
{[%clk 0:00:15.6]} 52. g8=Q+ {[%clk 0:00:28.7]} 52... Kb5 {[%clk 0:00:15.7]} 53.
Qd5 {[%clk 0:00:19.3]} 53... Kb6 {[%clk 0:00:13.6]} 54. Kg5 {[%clk 0:00:17.5]}
54... Kxa6 {[%clk 0:00:10]} 55. Qxc5 {[%clk 0:00:16.9]} 55... b3 {[%clk
0:00:09.8]} 56. Qa3+ {[%clk 0:00:16.8]} 56... Kb5 {[%clk 0:00:09.1]} 57. Qxb3+
{[%clk 0:00:17.4]} 1-0

[Event "Early-Titled-Tuesday-Blitz-February-20-2024"]
[Site "Chess.com"]
[Date "2024.02.20"]
[Round "8"]
[White "LiadCuba"]
[Black "Preobrazhenska_D2011"]
[Result "1-0"]
[WhiteElo "2519"]
[BlackElo "2375"]
[TimeControl "180+1"]
[EndTime "9:31:13 PST"]
[Termination "LiadCuba won on time"]

1. d4 {[%clk 0:01:50.5]} 1... Nf6 {[%clk 0:02:58.9]} 2. c4 {[%clk 0:01:50.6]}
2... e6 {[%clk 0:02:59.1]} 3. Nc3 {[%clk 0:01:50.5]} 3... Bb4 {[%clk 0:02:57.6]}
4. f3 {[%clk 0:01:50.6]} 4... c5 {[%clk 0:02:40.1]} 5. d5 {[%clk 0:01:49.9]}
5... d6 {[%clk 0:02:31]} 6. e4 {[%clk 0:01:49.7]} 6... b5 {[%clk 0:02:28.6]} 7.
Ne2 {[%clk 0:01:45.4]} 7... bxc4 {[%clk 0:02:11.1]} 8. Nf4 {[%clk 0:01:39]} 8...
exd5 {[%clk 0:01:42]} 9. Nxd5 {[%clk 0:01:38.3]} 9... O-O {[%clk 0:01:23.8]} 10.
Bxc4 {[%clk 0:01:36.3]} 10... Nc6 {[%clk 0:01:19]} 11. Bg5 {[%clk 0:01:29.6]}
11... Ne5 {[%clk 0:01:07]} 12. Be2 {[%clk 0:01:26.4]} 12... Ned7 {[%clk
0:00:56.7]} 13. O-O {[%clk 0:01:23.6]} 13... h6 {[%clk 0:00:54.8]} 14. Bf4
{[%clk 0:01:15.4]} 14... Bxc3 {[%clk 0:00:51.9]} 15. Nxc3 {[%clk 0:01:16.1]}
15... Ne5 {[%clk 0:00:51]} 16. Qd2 {[%clk 0:01:08.3]} 16... Be6 {[%clk
0:00:41.6]} 17. Rfd1 {[%clk 0:01:04.9]} 17... Qc8 {[%clk 0:00:20.1]} 18. Qxd6
{[%clk 0:00:58.8]} 18... Ng6 {[%clk 0:00:19.7]} 19. Be3 {[%clk 0:00:55.3]} 19...
c4 {[%clk 0:00:17.2]} 20. Qa3 {[%clk 0:00:46.9]} 20... Qc6 {[%clk 0:00:16.2]}
21. Rd6 {[%clk 0:00:46]} 21... Qb7 {[%clk 0:00:16.3]} 22. Rad1 {[%clk
0:00:45.1]} 22... Rab8 {[%clk 0:00:15.5]} 23. Rxe6 {[%clk 0:00:39.6]} 23... fxe6
{[%clk 0:00:15.7]} 24. Bxc4 {[%clk 0:00:40.2]} 24... Qxb2 {[%clk 0:00:11.7]} 25.
Bxe6+ {[%clk 0:00:38.1]} 25... Kh7 {[%clk 0:00:11.9]} 26. Qxb2 {[%clk
0:00:35.8]} 26... Rxb2 {[%clk 0:00:12.8]} 27. Bxa7 {[%clk 0:00:35.7]} 27... Kh8
{[%clk 0:00:12.3]} 28. Bd4 {[%clk 0:00:34.9]} 28... Nf4 {[%clk 0:00:11.9]} 29.
Bb3 {[%clk 0:00:33.4]} 29... Ne2+ {[%clk 0:00:11.1]} 30. Nxe2 {[%clk 0:00:33.2]}
30... Rxe2 {[%clk 0:00:12]} 31. Bc3 {[%clk 0:00:30.6]} 31... Nh5 {[%clk
0:00:11.1]} 32. Rd7 {[%clk 0:00:25.2]} 32... Rc8 {[%clk 0:00:09.3]} 33. Rd3
{[%clk 0:00:12.5]} 33... Nf4 {[%clk 0:00:08.8]} 34. Kf1 {[%clk 0:00:12.1]} 34...
Nxd3 {[%clk 0:00:06.6]} 35. Kxe2 {[%clk 0:00:12.6]} 35... Rxc3 {[%clk
0:00:05.4]} 36. Kd2 {[%clk 0:00:13.1]} 36... Rc7 {[%clk 0:00:04.1]} 37. Kxd3
{[%clk 0:00:13.2]} 37... Ra7 {[%clk 0:00:03.7]} 38. e5 {[%clk 0:00:13]} 38... g5
{[%clk 0:00:03.7]} 39. g3 {[%clk 0:00:12.9]} 39... Kg7 {[%clk 0:00:04.4]} 40. f4
{[%clk 0:00:13.1]} 40... g4 {[%clk 0:00:03.8]} 41. Ke4 {[%clk 0:00:13.1]} 41...
Kf8 {[%clk 0:00:03.8]} 42. f5 {[%clk 0:00:12.4]} 42... Ke7 {[%clk 0:00:03.9]}
43. Kf4 {[%clk 0:00:12.6]} 43... h5 {[%clk 0:00:04.1]} 44. f6+ {[%clk
0:00:12.7]} 44... Kf8 {[%clk 0:00:04.2]} 45. e6 {[%clk 0:00:13.1]} 45... Ra6
{[%clk 0:00:03.8]} 46. Kf5 {[%clk 0:00:12.6]} 46... Ra5+ {[%clk 0:00:04.1]} 47.
Kg6 {[%clk 0:00:13]} 47... Ra6 {[%clk 0:00:03.1]} 48. e7+ {[%clk 0:00:12.1]}
48... Ke8 {[%clk 0:00:03.6]} 49. Bf7+ {[%clk 0:00:12.2]} 49... Kd7 {[%clk
0:00:04.2]} 50. e8=Q+ {[%clk 0:00:13.1]} 1-0

[Event "Early-Titled-Tuesday-Blitz-February-20-2024"]
[Site "Chess.com"]
[Date "2024.02.20"]
[Round "8"]
[White "LaPiToB"]
[Black "BozeKat"]
[Result "0-1"]
[WhiteElo "2275"]
[BlackElo "2143"]
[TimeControl "180+1"]
[EndTime "9:31:14 PST"]
[Termination "BozeKat won by resignation"]

1. c4 {[%clk 0:02:55.7]} 1... c5 {[%clk 0:02:59.1]} 2. Nc3 {[%clk 0:02:55.9]}
2... g6 {[%clk 0:02:59.2]} 3. g3 {[%clk 0:02:56.4]} 3... Bg7 {[%clk 0:02:59.5]}
4. Bg2 {[%clk 0:02:57.3]} 4... Nc6 {[%clk 0:02:59.4]} 5. e4 {[%clk 0:02:57.9]}
5... e5 {[%clk 0:02:58.8]} 6. Nge2 {[%clk 0:02:58.6]} 6... Nge7 {[%clk
0:02:58.4]} 7. O-O {[%clk 0:02:58.8]} 7... O-O {[%clk 0:02:59.1]} 8. d3 {[%clk
0:02:57.5]} 8... d6 {[%clk 0:02:58.7]} 9. a3 {[%clk 0:02:57.9]} 9... Be6 {[%clk
0:02:52.1]} 10. Rb1 {[%clk 0:02:58.1]} 10... a5 {[%clk 0:02:51.7]} 11. f4 {[%clk
0:02:50.2]} 11... f5 {[%clk 0:02:50.5]} 12. Be3 {[%clk 0:02:48.6]} 12... h6
{[%clk 0:02:46.8]} 13. h3 {[%clk 0:02:45.2]} 13... Kh7 {[%clk 0:02:44.3]} 14.
Nd5 {[%clk 0:02:41.8]} 14... Nd4 {[%clk 0:02:35.3]} 15. Nxd4 {[%clk 0:02:37.7]}
15... cxd4 {[%clk 0:02:34.1]} 16. Bd2 {[%clk 0:02:37]} 16... fxe4 {[%clk
0:02:16.8]} 17. dxe4 {[%clk 0:02:32]} 17... Nc6 {[%clk 0:02:04.4]} 18. f5 {[%clk
0:02:22.9]} 18... gxf5 {[%clk 0:01:39.4]} 19. exf5 {[%clk 0:02:22.1]} 19... Bxd5
{[%clk 0:01:20]} 20. cxd5 {[%clk 0:02:17.8]} 20... Ne7 {[%clk 0:01:19.9]} 21.
Be4 {[%clk 0:02:11.1]} 21... Bf6 {[%clk 0:01:18.6]} 22. Qh5 {[%clk 0:02:09.4]}
22... Ng8 {[%clk 0:01:12.5]} 23. Rbc1 {[%clk 0:01:58.8]} 23... Rc8 {[%clk
0:01:04.9]} 24. g4 {[%clk 0:01:57.3]} 24... Qe8 {[%clk 0:00:59]} 25. Qxe8 {[%clk
0:01:43.7]} 25... Rfxe8 {[%clk 0:00:58.3]} 26. Bxa5 {[%clk 0:01:42.9]} 26... Kg7
{[%clk 0:00:47.4]} 27. Bb4 {[%clk 0:01:40.1]} 27... Be7 {[%clk 0:00:43.6]} 28.
Bd3 {[%clk 0:01:25]} 28... Nf6 {[%clk 0:00:42]} 29. Bb5 {[%clk 0:01:23.7]} 29...
Rg8 {[%clk 0:00:39.9]} 30. Bc4 {[%clk 0:01:20.7]} 30... Kh8 {[%clk 0:00:28.6]}
31. Kh2 {[%clk 0:01:11.1]} 31... h5 {[%clk 0:00:26.4]} 32. Be2 {[%clk
0:00:59.8]} 32... hxg4 {[%clk 0:00:20.6]} 33. Rxc8 {[%clk 0:00:55.6]} 33... g3+
{[%clk 0:00:17.5]} 34. Kg2 {[%clk 0:00:53.9]} 34... Rxc8 {[%clk 0:00:18.1]} 35.
Bd1 {[%clk 0:00:44.4]} 35... Nxd5 {[%clk 0:00:16.9]} 36. Bd2 {[%clk 0:00:42.2]}
36... Bh4 {[%clk 0:00:15.3]} 37. Bf3 {[%clk 0:00:38.3]} 37... Nf6 {[%clk
0:00:13.4]} 38. Bxb7 {[%clk 0:00:30.7]} 38... Rb8 {[%clk 0:00:13.7]} 39. Ba6
{[%clk 0:00:17.3]} 39... Rxb2 {[%clk 0:00:13.7]} 40. Rd1 {[%clk 0:00:17.8]}
40... Ne4 {[%clk 0:00:13.7]} 41. Kf3 {[%clk 0:00:15.4]} 41... Nxd2+ {[%clk
0:00:13.5]} 42. Kg4 {[%clk 0:00:15.4]} 42... Bf6 {[%clk 0:00:09.4]} 43. Rc1
{[%clk 0:00:13.2]} 43... Ne4 {[%clk 0:00:08.5]} 44. Kh5 {[%clk 0:00:13.2]} 44...
g2 {[%clk 0:00:07.7]} 45. Kg6 {[%clk 0:00:13.3]} 45... Rb8 {[%clk 0:00:05.8]}
46. Bc8 {[%clk 0:00:11]} 46... Nf2 {[%clk 0:00:04.2]} 47. Be6 {[%clk 0:00:10.7]}
47... Nxh3 {[%clk 0:00:04.4]} 48. Rc7 {[%clk 0:00:05.4]} 48... g1=Q+ {[%clk
0:00:05.3]} 49. Kh6 {[%clk 0:00:05.7]} 49... Qg7+ {[%clk 0:00:04.3]} 50. Rxg7
{[%clk 0:00:04.8]} 50... Bxg7+ {[%clk 0:00:05.2]} 51. Kg6 {[%clk 0:00:05.1]}
51... d3 {[%clk 0:00:05.6]} 52. f6 {[%clk 0:00:06]} 52... Bxf6 {[%clk
0:00:05.5]} 53. Kxf6 {[%clk 0:00:06]} 53... d2 {[%clk 0:00:06.4]} 54. Bxh3
{[%clk 0:00:05.9]} 54... d1=Q {[%clk 0:00:06.8]} 55. Bf5 {[%clk 0:00:06.8]}
55... Qa1 {[%clk 0:00:07]} 56. Ke6 {[%clk 0:00:07.5]} 56... Qxa3 {[%clk
0:00:07.5]} 57. Kf6 {[%clk 0:00:06.2]} 57... e4 {[%clk 0:00:07.8]} 58. Be6
{[%clk 0:00:07.1]} 58... e3 {[%clk 0:00:07.9]} 59. Bf5 {[%clk 0:00:08]} 59... e2
{[%clk 0:00:07.8]} 0-1

[Event "Early-Titled-Tuesday-Blitz-February-20-2024"]
[Site "Chess.com"]
[Date "2024.02.20"]
[Round "8"]
[White "Evgeny81"]
[Black "TigrVShlyape"]
[Result "0-1"]
[WhiteElo "2762"]
[BlackElo "2919"]
[TimeControl "180+1"]
[EndTime "9:31:15 PST"]
[Termination "TigrVShlyape won by resignation"]

1. c4 {[%clk 0:03:00.9]} 1... f5 {[%clk 0:02:49.2]} 2. g3 {[%clk 0:02:59.9]}
2... Nf6 {[%clk 0:02:46.5]} 3. d4 {[%clk 0:03:00.2]} 3... g6 {[%clk 0:02:45.4]}
4. Bg2 {[%clk 0:03:00.6]} 4... Bg7 {[%clk 0:02:44.9]} 5. Nf3 {[%clk 0:03:01.3]}
5... d6 {[%clk 0:02:44.9]} 6. O-O {[%clk 0:03:01.9]} 6... O-O {[%clk 0:02:44.4]}
7. Nc3 {[%clk 0:03:00.8]} 7... c6 {[%clk 0:02:44.4]} 8. b3 {[%clk 0:02:59.5]}
8... a5 {[%clk 0:02:41.3]} 9. Bb2 {[%clk 0:02:59.4]} 9... Na6 {[%clk 0:02:41.7]}
10. Re1 {[%clk 0:02:57]} 10... Ne4 {[%clk 0:02:41.3]} 11. Qc1 {[%clk 0:02:43.1]}
11... Qb6 {[%clk 0:02:09.6]} 12. Rd1 {[%clk 0:02:40.5]} 12... e5 {[%clk
0:02:02.5]} 13. c5 {[%clk 0:02:32.8]} 13... Nxc3 {[%clk 0:01:41]} 14. Bxc3
{[%clk 0:02:25.5]} 14... dxc5 {[%clk 0:01:40.3]} 15. dxe5 {[%clk 0:02:18.6]}
15... Nc7 {[%clk 0:01:35.5]} 16. Nd2 {[%clk 0:02:12.1]} 16... Nb5 {[%clk
0:01:22.6]} 17. Nc4 {[%clk 0:02:09.5]} 17... Qc7 {[%clk 0:01:19.2]} 18. Bb2
{[%clk 0:02:09.1]} 18... Be6 {[%clk 0:01:14.8]} 19. f4 {[%clk 0:02:02.2]} 19...
Rfd8 {[%clk 0:01:12.7]} 20. e3 {[%clk 0:01:53.5]} 20... a4 {[%clk 0:01:10.4]}
21. Rxd8+ {[%clk 0:01:40.3]} 21... Qxd8 {[%clk 0:01:10.1]} 22. Qc2 {[%clk
0:01:39]} 22... axb3 {[%clk 0:01:08.1]} 23. axb3 {[%clk 0:01:38.5]} 23... Rxa1+
{[%clk 0:01:07.7]} 24. Bxa1 {[%clk 0:01:39.4]} 24... Bd5 {[%clk 0:00:54.6]} 25.
Qd1 {[%clk 0:01:31.2]} 25... Bf8 {[%clk 0:00:46.8]} 26. Bb2 {[%clk 0:00:43.3]}
26... Be7 {[%clk 0:00:45.8]} 27. Bxd5+ {[%clk 0:00:39.2]} 27... Qxd5 {[%clk
0:00:43.7]} 28. Qxd5+ {[%clk 0:00:38.4]} 28... cxd5 {[%clk 0:00:43.7]} 29. Nb6
{[%clk 0:00:39.1]} 29... Nc7 {[%clk 0:00:43.6]} 30. Ba3 {[%clk 0:00:33.8]} 30...
Kf7 {[%clk 0:00:42.3]} 31. Nd7 {[%clk 0:00:32.7]} 31... Na6 {[%clk 0:00:42.4]}
32. Kf2 {[%clk 0:00:28.5]} 32... Ke6 {[%clk 0:00:42.1]} 33. Nb6 {[%clk
0:00:28.7]} 33... Bd8 {[%clk 0:00:35.4]} 34. Na4 {[%clk 0:00:28.6]} 34... c4
{[%clk 0:00:34.5]} 35. bxc4 {[%clk 0:00:21.1]} 35... dxc4 {[%clk 0:00:34.8]} 36.
Nc3 {[%clk 0:00:19.4]} 36... Ba5 {[%clk 0:00:33.2]} 37. Nb5 {[%clk 0:00:19.5]}
37... Nc7 {[%clk 0:00:31.3]} 38. Nd4+ {[%clk 0:00:17.4]} 38... Kd5 {[%clk
0:00:31.1]} 39. Ke2 {[%clk 0:00:17.9]} 39... b5 {[%clk 0:00:30.8]} 40. Nc2
{[%clk 0:00:17.7]} 40... Ne6 {[%clk 0:00:28.6]} 41. Bb4 {[%clk 0:00:12.8]} 41...
Bb6 {[%clk 0:00:27.7]} 42. h3 {[%clk 0:00:11.6]} 42... h5 {[%clk 0:00:25.2]} 43.
Bd6 {[%clk 0:00:10.6]} 43... Ke4 {[%clk 0:00:24.3]} 44. Nb4 {[%clk 0:00:09.8]}
44... Bxe3 {[%clk 0:00:23.6]} 45. h4 {[%clk 0:00:07.2]} 45... Bd4 {[%clk
0:00:22.4]} 46. Nc2 {[%clk 0:00:06.7]} 46... Bc3 {[%clk 0:00:21.5]} 47. Kd1
{[%clk 0:00:05.3]} 47... Kd5 {[%clk 0:00:20]} 48. Bb4 {[%clk 0:00:04.8]} 48...
Bd4 {[%clk 0:00:19.3]} 49. Ke2 {[%clk 0:00:04.2]} 49... Bb6 {[%clk 0:00:19.1]}
50. Bc3 {[%clk 0:00:04.3]} 50... Bc5 {[%clk 0:00:18.3]} 51. Kf3 {[%clk
0:00:04.7]} 51... Nd8 {[%clk 0:00:16.2]} 52. Bd2 {[%clk 0:00:04.4]} 52... Nc6
{[%clk 0:00:16.4]} 53. Be3 {[%clk 0:00:04.9]} 53... b4 {[%clk 0:00:16.6]} 54.
Bxc5 {[%clk 0:00:05.2]} 54... Kxc5 {[%clk 0:00:17]} 55. Ke3 {[%clk 0:00:05.8]}
55... b3 {[%clk 0:00:17.3]} 56. Na3 {[%clk 0:00:05.7]} 56... Kb4 {[%clk
0:00:17.1]} 57. Nb1 {[%clk 0:00:05.7]} 57... c3 {[%clk 0:00:17.6]} 58. Kd3
{[%clk 0:00:05.4]} 58... c2 {[%clk 0:00:17.7]} 0-1